[Event "Titled Tuesday Blitz March 15 Late 2022"]
[White "Fishbein, Alexander"]
[Black "Urazayev, Arystanbek"]
[WhiteFideId "2000377"]
[BlackFideId "13709810"]
[WhiteElo "2442"]
[BlackElo "2393"]
[Result "0-1"]
[Round "11"]
[TimeControl "180+1"]
[Date "2022.03.15"]
[WhiteClock "0:00:01"]
[BlackClock "0:00:38"]

1. e4 {[%clk 0:03:00]}  c6 {[%clk 0:02:59]} 2. d4 {[%clk 0:02:59]}  d5 {[%clk 0:03:00]} 3. Nc3 {[%clk 0:02:59]}  dxe4 {[%clk 0:03:00]} 4. Nxe4 {[%clk 0:02:59]}  Bf5 {[%clk 0:03:01]} 5. Nc5 {[%clk 0:02:59]}  e5 {[%clk 0:03:01]} 6. Nxb7 {[%clk 0:02:58]}  Qb6 {[%clk 0:03:00]} 7. Nc5 {[%clk 0:02:58]}  exd4 {[%clk 0:02:56]} 8. Nb3 {[%clk 0:02:58]}  c5 {[%clk 0:02:54]} 9. Nf3 {[%clk 0:02:53]}  Nf6 {[%clk 0:02:53]} 10. Bd3 {[%clk 0:02:45]}  Bxd3 {[%clk 0:02:53]} 11. cxd3 {[%clk 0:02:44]}  Be7 {[%clk 0:02:51]} 12. O-O {[%clk 0:02:44]}  O-O {[%clk 0:02:51]} 13. Re1 {[%clk 0:02:34]}  Nc6 {[%clk 0:02:52]} 14. Nfd2 {[%clk 0:02:29]}  Rfe8 {[%clk 0:02:50]} 15. Nc4 {[%clk 0:02:28]}  Qc7 {[%clk 0:02:50]} 16. Bd2 {[%clk 0:02:24]}  h5 {[%clk 0:02:43]} 17. h3 {[%clk 0:02:22]}  Bf8 {[%clk 0:02:39]} 18. Qf3 {[%clk 0:02:20]}  Rac8 {[%clk 0:02:20]} 19. Bf4 {[%clk 0:02:18]}  Qd7 {[%clk 0:02:17]} 20. Bg5 {[%clk 0:02:06]}  Nh7 {[%clk 0:02:16]} 21. Bh4 {[%clk 0:01:58]}  g6 {[%clk 0:02:12]} 22. Nbd2 {[%clk 0:01:51]}  f5 {[%clk 0:02:05]} 23. Bg3 {[%clk 0:01:34]}  Ng5 {[%clk 0:02:03]} 24. Qd1 {[%clk 0:01:29]}  Nf7 {[%clk 0:02:01]} 25. Qb3 {[%clk 0:01:25]}  Kh7 {[%clk 0:01:57]} 26. Nf3 {[%clk 0:01:24]}  Bh6 {[%clk 0:01:53]} 27. Nfe5 {[%clk 0:01:14]}  Ncxe5 {[%clk 0:01:52]} 28. Bxe5 {[%clk 0:01:13]}  f4 {[%clk 0:01:49]} 29. Bf6 {[%clk 0:00:57]}  f3 {[%clk 0:01:47]} 30. Ne5 {[%clk 0:00:45]}  Nxe5 {[%clk 0:01:46]} 31. Rxe5 {[%clk 0:00:46]}  Rxe5 {[%clk 0:01:42]} 32. Bxe5 {[%clk 0:00:46]}  fxg2 {[%clk 0:01:42]} 33. Kxg2 {[%clk 0:00:41]}  Re8 {[%clk 0:01:38]} 34. Bg3 {[%clk 0:00:37]}  Bg5 {[%clk 0:01:28]} 35. h4 {[%clk 0:00:36]}  Bf6 {[%clk 0:01:18]} 36. Rc1 {[%clk 0:00:35]}  Qc6+ {[%clk 0:01:14]} 37. Kh2 {[%clk 0:00:33]}  Re7 {[%clk 0:01:15]} 38. Qc4 {[%clk 0:00:29]}  Qf3 {[%clk 0:01:04]} 39. Qxc5 {[%clk 0:00:26]}  Qxd3 {[%clk 0:01:00]} 40. Qd6 {[%clk 0:00:26]}  Qf5 {[%clk 0:00:52]} 41. Rc7 {[%clk 0:00:22]}  Rxc7 {[%clk 0:00:52]} 42. Qxc7+ {[%clk 0:00:22]}  Bg7 {[%clk 0:00:52]} 43. Qxa7 {[%clk 0:00:19]}  d3 {[%clk 0:00:52]} 44. Qe3 {[%clk 0:00:19]}  Qd5 {[%clk 0:00:46]} 45. Bf4 {[%clk 0:00:13]}  Bxb2 {[%clk 0:00:42]} 46. a4 {[%clk 0:00:06]}  Bc3 {[%clk 0:00:38]} 47. a5 {[%clk 0:00:06]}  d2 {[%clk 0:00:37]} 48. Qe7+ {[%clk 0:00:04]}  Bg7 {[%clk 0:00:37]} 49. Bxd2 {[%clk 0:00:02]}  Qxd2 {[%clk 0:00:38]} 50. Kg2 {[%clk 0:00:01]}  Qxa5 {[%clk 0:00:38]} 0-1


[Site "https://www.chess.com"]

[Event "Titled Tuesday Blitz March 15 Late 2022"]
[White "Golubka, Petro"]
[Black "Kokoszczynski, Jan"]
[WhiteFideId "14114224"]
[BlackFideId "1174460"]
[WhiteElo "2346"]
[BlackElo "2163"]
[Result "1-0"]
[Round "11"]
[TimeControl "180+1"]
[Date "2022.03.15"]
[WhiteClock "0:00:22"]
[BlackClock "0:00:01"]

1. e4 {[%clk 0:02:58]}  e5 {[%clk 0:02:58]} 2. Bc4 {[%clk 0:02:57]}  Nc6 {[%clk 0:02:54]} 3. d3 {[%clk 0:02:49]}  Bc5 {[%clk 0:02:41]} 4. Nc3 {[%clk 0:02:42]}  d6 {[%clk 0:02:38]} 5. a3 {[%clk 0:02:41]}  Be6 {[%clk 0:02:30]} 6. Be3 {[%clk 0:02:40]}  Bxc4 {[%clk 0:02:28]} 7. dxc4 {[%clk 0:02:41]}  Bxe3 {[%clk 0:02:26]} 8. fxe3 {[%clk 0:02:39]}  Qg5 {[%clk 0:02:26]} 9. Qe2 {[%clk 0:02:37]}  Nge7 {[%clk 0:02:20]} 10. Nf3 {[%clk 0:02:37]}  Qh6 {[%clk 0:02:19]} 11. O-O-O {[%clk 0:02:32]}  O-O-O {[%clk 0:02:16]} 12. g4 {[%clk 0:02:27]}  Qe6 {[%clk 0:02:03]} 13. Rhg1 {[%clk 0:02:26]}  f6 {[%clk 0:02:02]} 14. b4 {[%clk 0:02:23]}  Rdf8 {[%clk 0:01:41]} 15. Nh4 {[%clk 0:02:10]}  g6 {[%clk 0:01:40]} 16. Nd5 {[%clk 0:02:09]}  Rf7 {[%clk 0:01:39]} 17. Rdf1 {[%clk 0:02:08]}  Rhf8 {[%clk 0:01:39]} 18. Qd3 {[%clk 0:02:07]}  Nb8 {[%clk 0:01:35]} 19. Rf3 {[%clk 0:01:59]}  c6 {[%clk 0:01:32]} 20. Nc3 {[%clk 0:01:54]}  a5 {[%clk 0:01:23]} 21. bxa5 {[%clk 0:01:53]}  Na6 {[%clk 0:01:23]} 22. Na4 {[%clk 0:01:51]}  Kc7 {[%clk 0:01:21]} 23. h3 {[%clk 0:01:42]}  Ra8 {[%clk 0:00:56]} 24. Rgf1 {[%clk 0:01:34]}  Raf8 {[%clk 0:00:41]} 25. Kb2 {[%clk 0:01:05]}  Nc8 {[%clk 0:00:41]} 26. Ng2 {[%clk 0:01:02]}  Nc5 {[%clk 0:00:41]} 27. Nxc5 {[%clk 0:01:01]}  dxc5 {[%clk 0:00:42]} 28. g5 {[%clk 0:00:49]}  fxg5 {[%clk 0:00:37]} 29. Rxf7+ {[%clk 0:00:50]}  Rxf7 {[%clk 0:00:38]} 30. Rxf7+ {[%clk 0:00:49]}  Qxf7 {[%clk 0:00:39]} 31. Qc3 {[%clk 0:00:49]}  Qe6 {[%clk 0:00:39]} 32. Ne1 {[%clk 0:00:48]}  Nd6 {[%clk 0:00:39]} 33. Nd3 {[%clk 0:00:49]}  Nxc4+ {[%clk 0:00:40]} 34. Ka2 {[%clk 0:00:48]}  Nxe3+ {[%clk 0:00:37]} 35. Kb1 {[%clk 0:00:48]}  Nc4 {[%clk 0:00:34]} 36. Nxc5 {[%clk 0:00:47]}  Qf7 {[%clk 0:00:29]} 37. Qb4 {[%clk 0:00:45]}  Kc8 {[%clk 0:00:20]} 38. Na4 {[%clk 0:00:36]}  h5 {[%clk 0:00:19]} 39. Qxc4 {[%clk 0:00:35]}  Qxc4 {[%clk 0:00:19]} 40. Nb6+ {[%clk 0:00:36]}  Kc7 {[%clk 0:00:19]} 41. Nxc4 {[%clk 0:00:37]}  g4 {[%clk 0:00:17]} 42. hxg4 {[%clk 0:00:35]}  h4 {[%clk 0:00:17]} 43. Nd2 {[%clk 0:00:34]}  h3 {[%clk 0:00:17]} 44. Nf3 {[%clk 0:00:35]}  Kd6 {[%clk 0:00:17]} 45. c3 {[%clk 0:00:33]}  Kc5 {[%clk 0:00:17]} 46. Kc2 {[%clk 0:00:33]}  Kb5 {[%clk 0:00:17]} 47. Kb3 {[%clk 0:00:33]}  Kxa5 {[%clk 0:00:18]} 48. c4 {[%clk 0:00:33]}  b6 {[%clk 0:00:18]} 49. g5 {[%clk 0:00:32]}  c5 {[%clk 0:00:17]} 50. a4 {[%clk 0:00:29]}  Ka6 {[%clk 0:00:16]} 51. Kc3 {[%clk 0:00:29]}  Ka5 {[%clk 0:00:17]} 52. Kb3 {[%clk 0:00:29]}  Ka6 {[%clk 0:00:17]} 53. Nh2 {[%clk 0:00:29]}  Ka5 {[%clk 0:00:17]} 54. Ng4 {[%clk 0:00:30]}  Ka6 {[%clk 0:00:18]} 55. Ka3 {[%clk 0:00:29]}  Ka5 {[%clk 0:00:17]} 56. Kb3 {[%clk 0:00:29]}  Ka6 {[%clk 0:00:17]} 57. Kc3 {[%clk 0:00:30]}  Ka5 {[%clk 0:00:17]} 58. Kd3 {[%clk 0:00:30]}  Kxa4 {[%clk 0:00:17]} 59. Ke3 {[%clk 0:00:31]}  Kb3 {[%clk 0:00:17]} 60. Kf3 {[%clk 0:00:31]}  Kxc4 {[%clk 0:00:18]} 61. Nxe5+ {[%clk 0:00:32]}  Kc3 {[%clk 0:00:16]} 62. Nxg6 {[%clk 0:00:33]}  b5 {[%clk 0:00:16]} 63. Nf4 {[%clk 0:00:33]}  b4 {[%clk 0:00:16]} 64. Nd5+ {[%clk 0:00:33]}  Kd4 {[%clk 0:00:15]} 65. g6 {[%clk 0:00:33]}  b3 {[%clk 0:00:13]} 66. g7 {[%clk 0:00:33]}  b2 {[%clk 0:00:13]} 67. g8=Q {[%clk 0:00:33]}  b1=Q {[%clk 0:00:14]} 68. Qh8+ {[%clk 0:00:33]}  Kc4 {[%clk 0:00:12]} 69. Ne3+ {[%clk 0:00:32]}  Kd3 {[%clk 0:00:10]} 70. Qxh3 {[%clk 0:00:30]}  Qb8 {[%clk 0:00:10]} 71. Qd7+ {[%clk 0:00:29]}  Kc3 {[%clk 0:00:08]} 72. Qg7+ {[%clk 0:00:27]}  Kb3 {[%clk 0:00:06]} 73. Qf7+ {[%clk 0:00:26]}  Ka3 {[%clk 0:00:04]} 74. e5 {[%clk 0:00:25]}  Qc8 {[%clk 0:00:03]} 75. Nc4+ {[%clk 0:00:23]}  Kb4 {[%clk 0:00:03]} 76. Nd6 {[%clk 0:00:24]}  Qh8 {[%clk 0:00:02]} 77. Ke4 {[%clk 0:00:24]}  Qh1+ {[%clk 0:00:01]} 78. Kf5 {[%clk 0:00:23]}  Qf1+ {[%clk 0:00:02]} 79. Ke6 {[%clk 0:00:23]}  c4 {[%clk 0:00:01]} 80. Qxf1 {[%clk 0:00:22]} 1-0


[Site "https://www.chess.com"]

[Event "Titled Tuesday Blitz March 15 Late 2022"]
[White "Grischuk, Alexander"]
[Black "Martinez Alcantara, Jose Eduardo"]
[WhiteFideId "4126025"]
[BlackFideId "3805662"]
[WhiteElo "2762"]
[BlackElo "2690"]
[Result "0-1"]
[Round "11"]
[TimeControl "180+1"]
[Date "2022.03.15"]
[WhiteClock "0:00:03"]
[BlackClock "0:00:04"]

1. e4 {[%clk 0:03:00]}  c5 {[%clk 0:02:52]} 2. Nc3 {[%clk 0:03:01]}  e6 {[%clk 0:02:49]} 3. Nf3 {[%clk 0:03:00]}  Nc6 {[%clk 0:02:43]} 4. Bb5 {[%clk 0:02:59]}  Nge7 {[%clk 0:02:39]} 5. O-O {[%clk 0:02:59]}  a6 {[%clk 0:02:37]} 6. Bxc6 {[%clk 0:02:59]}  Nxc6 {[%clk 0:02:38]} 7. d4 {[%clk 0:02:59]}  cxd4 {[%clk 0:02:39]} 8. Nxd4 {[%clk 0:03:00]}  Be7 {[%clk 0:02:38]} 9. Nxc6 {[%clk 0:02:55]}  dxc6 {[%clk 0:02:25]} 10. e5 {[%clk 0:02:46]}  O-O {[%clk 0:02:03]} 11. Qg4 {[%clk 0:02:19]}  f5 {[%clk 0:02:02]} 12. exf6 {[%clk 0:02:10]}  Bxf6 {[%clk 0:02:02]} 13. Rd1 {[%clk 0:01:56]}  Qe8 {[%clk 0:01:42]} 14. Ne4 {[%clk 0:01:54]}  e5 {[%clk 0:01:42]} 15. Qe2 {[%clk 0:00:57]}  Be6 {[%clk 0:01:31]} 16. b3 {[%clk 0:00:50]}  Qg6 {[%clk 0:01:26]} 17. Ba3 {[%clk 0:00:50]}  Rfd8 {[%clk 0:01:19]} 18. c4 {[%clk 0:00:45]}  Bf5 {[%clk 0:00:57]} 19. Nd6 {[%clk 0:00:43]}  e4 {[%clk 0:00:58]} 20. Rab1 {[%clk 0:00:32]}  Bg4 {[%clk 0:00:56]} 21. Qe3 {[%clk 0:00:25]}  Bxd1 {[%clk 0:00:54]} 22. Rxd1 {[%clk 0:00:26]}  Be7 {[%clk 0:00:49]} 23. c5 {[%clk 0:00:25]}  b6 {[%clk 0:00:32]} 24. Re1 {[%clk 0:00:24]}  Bxd6 {[%clk 0:00:29]} 25. cxd6 {[%clk 0:00:25]}  c5 {[%clk 0:00:30]} 26. h3 {[%clk 0:00:22]}  Rxd6 {[%clk 0:00:30]} 27. Bb2 {[%clk 0:00:23]}  Rad8 {[%clk 0:00:29]} 28. Qc3 {[%clk 0:00:18]}  Rf8 {[%clk 0:00:18]} 29. Qc4+ {[%clk 0:00:06]}  Qf7 {[%clk 0:00:18]} 30. Qc2 {[%clk 0:00:06]}  Re6 {[%clk 0:00:15]} 31. Re3 {[%clk 0:00:06]}  h5 {[%clk 0:00:11]} 32. h4 {[%clk 0:00:06]}  Kh7 {[%clk 0:00:08]} 33. Qe2 {[%clk 0:00:06]}  Qf5 {[%clk 0:00:06]} 34. a4 {[%clk 0:00:05]}  a5 {[%clk 0:00:06]} 35. Bc3 {[%clk 0:00:05]}  Rf7 {[%clk 0:00:06]} 36. Be1 {[%clk 0:00:05]}  Qg4 {[%clk 0:00:06]} 37. Qc4 {[%clk 0:00:03]}  Qf5 {[%clk 0:00:06]} 38. Qe2 {[%clk 0:00:03]}  Rfe7 {[%clk 0:00:06]} 39. Bc3 {[%clk 0:00:03]}  Rg6 {[%clk 0:00:07]} 40. g3 {[%clk 0:00:02]}  Rge6 {[%clk 0:00:05]} 41. Qc4 {[%clk 0:00:02]}  Rd7 {[%clk 0:00:05]} 42. Qe2 {[%clk 0:00:02]}  g6 {[%clk 0:00:04]} 43. Qa6 {[%clk 0:00:02]}  Rf7 {[%clk 0:00:03]} 44. Be1 {[%clk 0:00:01]}  g5 {[%clk 0:00:02]} 45. Qc4 {[%clk 0:00:01]}  gxh4 {[%clk 0:00:01]} 46. gxh4 {[%clk 0:00:02]}  Rg6+ {[%clk 0:00:02]} 47. Kf1 {[%clk 0:00:03]}  Rgf6 {[%clk 0:00:02]} 48. Ke2 {[%clk 0:00:02]}  Qg4+ {[%clk 0:00:02]} 49. Kd2 {[%clk 0:00:02]}  Rd7+ {[%clk 0:00:03]} 50. Kc3 {[%clk 0:00:02]}  Rd3+ {[%clk 0:00:03]} 51. Rxd3 {[%clk 0:00:02]}  exd3 {[%clk 0:00:04]} 52. Qxd3+ {[%clk 0:00:03]}  Qf5 {[%clk 0:00:04]} 53. Qd8 {[%clk 0:00:03]}  Qe5+ {[%clk 0:00:04]} 54. Kc2 {[%clk 0:00:03]}  Qf5+ {[%clk 0:00:04]} 55. Kb2 {[%clk 0:00:03]}  Rf8 {[%clk 0:00:04]} 56. Qe7+ {[%clk 0:00:03]}  Qf7 {[%clk 0:00:04]} 57. Qe5 {[%clk 0:00:03]}  Qf6 {[%clk 0:00:04]} 0-1


[Site "https://www.chess.com"]

[Event "Titled Tuesday Blitz March 15 Late 2022"]
[White "Hess, Max"]
[Black "Sinitsina, Anastassia"]
[WhiteFideId "24656666"]
[BlackFideId "4504640"]
[WhiteElo "2276"]
[BlackElo "2144"]
[Result "1-0"]
[Round "11"]
[TimeControl "180+1"]
[Date "2022.03.16"]
[WhiteClock "0:00:46"]
[BlackClock "0:00:59"]

1. e4 {[%clk 0:02:50]}  e5 {[%clk 0:02:59]} 2. Nf3 {[%clk 0:02:48]}  Nc6 {[%clk 0:02:59]} 3. Nc3 {[%clk 0:02:49]}  Nf6 {[%clk 0:02:59]} 4. Be2 {[%clk 0:02:50]}  Be7 {[%clk 0:02:56]} 5. O-O {[%clk 0:02:49]}  O-O {[%clk 0:02:56]} 6. d4 {[%clk 0:02:49]}  exd4 {[%clk 0:02:56]} 7. Nxd4 {[%clk 0:02:50]}  Re8 {[%clk 0:02:53]} 8. Nf5 {[%clk 0:02:39]}  Bf8 {[%clk 0:02:51]} 9. Bg5 {[%clk 0:02:38]}  h6 {[%clk 0:02:32]} 10. Bh4 {[%clk 0:02:25]}  g5 {[%clk 0:02:16]} 11. Bg3 {[%clk 0:02:20]}  Nxe4 {[%clk 0:02:13]} 12. Nxe4 {[%clk 0:02:17]}  Rxe4 {[%clk 0:02:13]} 13. Bd3 {[%clk 0:02:16]}  Re8 {[%clk 0:02:07]} 14. Qh5 {[%clk 0:02:15]}  Qf6 {[%clk 0:02:03]} 15. f4 {[%clk 0:02:13]}  g4 {[%clk 0:01:38]} 16. Qxg4+ {[%clk 0:02:02]}  Kh8 {[%clk 0:01:37]} 17. Bh4 {[%clk 0:01:43]}  Qxb2 {[%clk 0:01:35]} 18. Rae1 {[%clk 0:01:18]}  Re6 {[%clk 0:01:12]} 19. Qh5 {[%clk 0:00:48]}  Nd8 {[%clk 0:00:59]} 20. Bxd8 {[%clk 0:00:46]} 1-0


[Site "https://www.chess.com"]

[Event "Titled Tuesday Blitz March 15 Late 2022"]
[White "Holt, Conrad"]
[Black "Deac, Bogdan-Daniel"]
[WhiteFideId "2034387"]
[BlackFideId "1226380"]
[WhiteElo "2586"]
[BlackElo "2646"]
[Result "0-1"]
[Round "11"]
[TimeControl "180+1"]
[Date "2022.03.15"]
[WhiteClock "0:00:05"]
[BlackClock "0:00:06"]

1. d4 {[%clk 0:02:55]}  Nf6 {[%clk 0:03:00]} 2. c4 {[%clk 0:02:55]}  g6 {[%clk 0:03:00]} 3. Nc3 {[%clk 0:02:56]}  d5 {[%clk 0:03:00]} 4. e3 {[%clk 0:02:54]}  Bg7 {[%clk 0:03:00]} 5. Qb3 {[%clk 0:02:54]}  c6 {[%clk 0:02:58]} 6. Nf3 {[%clk 0:02:53]}  O-O {[%clk 0:02:57]} 7. Be2 {[%clk 0:02:52]}  a5 {[%clk 0:02:44]} 8. a4 {[%clk 0:02:44]}  e6 {[%clk 0:02:38]} 9. O-O {[%clk 0:02:43]}  Na6 {[%clk 0:02:37]} 10. Bd2 {[%clk 0:02:36]}  Nb4 {[%clk 0:02:37]} 11. Na2 {[%clk 0:02:36]}  Nxa2 {[%clk 0:02:35]} 12. Qxa2 {[%clk 0:02:35]}  Ne4 {[%clk 0:02:36]} 13. Be1 {[%clk 0:02:36]}  b6 {[%clk 0:02:36]} 14. Ne5 {[%clk 0:02:31]}  c5 {[%clk 0:02:27]} 15. Rd1 {[%clk 0:02:10]}  cxd4 {[%clk 0:02:20]} 16. exd4 {[%clk 0:02:10]}  Ba6 {[%clk 0:02:19]} 17. b3 {[%clk 0:02:02]}  Rc8 {[%clk 0:02:17]} 18. h3 {[%clk 0:01:30]}  Qd6 {[%clk 0:01:53]} 19. Nf3 {[%clk 0:01:19]}  Rfd8 {[%clk 0:01:47]} 20. Bd3 {[%clk 0:01:16]}  Bb7 {[%clk 0:01:41]} 21. Qe2 {[%clk 0:01:11]}  Qc6 {[%clk 0:01:31]} 22. c5 {[%clk 0:00:39]}  Qc7 {[%clk 0:01:19]} 23. cxb6 {[%clk 0:00:26]}  Qxb6 {[%clk 0:01:19]} 24. Bb5 {[%clk 0:00:21]}  Bc6 {[%clk 0:00:59]} 25. Ra1 {[%clk 0:00:15]}  Ra8 {[%clk 0:00:36]} 26. Bxc6 {[%clk 0:00:13]}  Qxc6 {[%clk 0:00:36]} 27. Qb5 {[%clk 0:00:14]}  Qc7 {[%clk 0:00:31]} 28. Rb1 {[%clk 0:00:10]}  Rdb8 {[%clk 0:00:29]} 29. Qd3 {[%clk 0:00:10]}  Rc8 {[%clk 0:00:29]} 30. Bd2 {[%clk 0:00:10]}  Qc2 {[%clk 0:00:24]} 31. Qe3 {[%clk 0:00:10]}  Nxd2 {[%clk 0:00:24]} 32. Nxd2 {[%clk 0:00:10]}  Rc3 {[%clk 0:00:22]} 33. Qf4 {[%clk 0:00:10]}  Qf5 {[%clk 0:00:19]} 34. Qxf5 {[%clk 0:00:09]}  gxf5 {[%clk 0:00:19]} 35. Nf3 {[%clk 0:00:08]}  Rb8 {[%clk 0:00:19]} 36. Rfc1 {[%clk 0:00:07]}  Rbxb3 {[%clk 0:00:18]} 37. Rxb3 {[%clk 0:00:04]}  Rxc1+ {[%clk 0:00:18]} 38. Kh2 {[%clk 0:00:05]}  Bf6 {[%clk 0:00:12]} 39. Rb5 {[%clk 0:00:02]}  Rc4 {[%clk 0:00:12]} 40. Rxa5 {[%clk 0:00:02]}  Bxd4 {[%clk 0:00:12]} 41. Nxd4 {[%clk 0:00:02]}  Rxd4 {[%clk 0:00:13]} 42. Kg3 {[%clk 0:00:03]}  f4+ {[%clk 0:00:11]} 43. Kg4 {[%clk 0:00:02]}  Kg7 {[%clk 0:00:10]} 44. Ra7 {[%clk 0:00:02]}  Kg6 {[%clk 0:00:10]} 45. a5 {[%clk 0:00:02]}  h5+ {[%clk 0:00:08]} 46. Kf3 {[%clk 0:00:02]}  Ra4 {[%clk 0:00:09]} 47. h4 {[%clk 0:00:02]}  e5 {[%clk 0:00:08]} 48. Ke2 {[%clk 0:00:02]}  f6 {[%clk 0:00:07]} 49. Kd2 {[%clk 0:00:02]}  d4 {[%clk 0:00:06]} 50. a6 {[%clk 0:00:02]}  Ra2+ {[%clk 0:00:05]} 51. Kd3 {[%clk 0:00:02]}  Kf5 {[%clk 0:00:05]} 52. Ra8 {[%clk 0:00:02]}  Rxf2 {[%clk 0:00:05]} 53. Kc4 {[%clk 0:00:01]}  Ra2 {[%clk 0:00:05]} 54. Kb5 {[%clk 0:00:02]}  d3 {[%clk 0:00:05]} 55. Rd8 {[%clk 0:00:02]}  Ke4 {[%clk 0:00:04]} 56. Kb6 {[%clk 0:00:02]}  Ke3 {[%clk 0:00:04]} 57. a7 {[%clk 0:00:03]}  d2 {[%clk 0:00:04]} 58. Kb7 {[%clk 0:00:03]}  Ke2 {[%clk 0:00:04]} 59. a8=Q {[%clk 0:00:03]}  Rxa8 {[%clk 0:00:04]} 60. Kxa8 {[%clk 0:00:04]}  d1=Q {[%clk 0:00:05]} 61. Rxd1 {[%clk 0:00:04]}  Kxd1 {[%clk 0:00:05]} 62. Kb7 {[%clk 0:00:05]}  e4 {[%clk 0:00:06]} 0-1


[Site "https://www.chess.com"]

[Event "Titled Tuesday Blitz March 15 Late 2022"]
[White "Ibarra Jerez, Jose Carlos"]
[Black "Sarana, Alexey"]
[WhiteFideId "2226332"]
[BlackFideId "24133795"]
[WhiteElo "2626"]
[BlackElo "2666"]
[Result "1/2-1/2"]
[Round "11"]
[TimeControl "180+1"]
[Date "2022.03.15"]
[WhiteClock "0:00:26"]
[BlackClock "0:01:42"]

1. c4 {[%clk 0:03:00]}  e6 {[%clk 0:02:58]} 2. Nf3 {[%clk 0:03:00]}  d5 {[%clk 0:02:58]} 3. g3 {[%clk 0:03:00]}  c5 {[%clk 0:02:56]} 4. cxd5 {[%clk 0:03:00]}  exd5 {[%clk 0:02:56]} 5. d4 {[%clk 0:03:00]}  Nf6 {[%clk 0:02:56]} 6. Bg2 {[%clk 0:03:00]}  Nc6 {[%clk 0:02:57]} 7. O-O {[%clk 0:03:00]}  cxd4 {[%clk 0:02:58]} 8. Nxd4 {[%clk 0:03:00]}  Bc5 {[%clk 0:02:58]} 9. Nb3 {[%clk 0:02:58]}  Bb6 {[%clk 0:02:58]} 10. Nc3 {[%clk 0:02:59]}  d4 {[%clk 0:02:55]} 11. Na4 {[%clk 0:02:56]}  O-O {[%clk 0:02:55]} 12. Nxb6 {[%clk 0:02:51]}  axb6 {[%clk 0:02:55]} 13. Bxc6 {[%clk 0:02:38]}  bxc6 {[%clk 0:02:56]} 14. Qxd4 {[%clk 0:02:37]}  Be6 {[%clk 0:02:49]} 15. Qxd8 {[%clk 0:02:21]}  Rfxd8 {[%clk 0:02:50]} 16. Bg5 {[%clk 0:02:11]}  c5 {[%clk 0:02:50]} 17. Rfd1 {[%clk 0:01:58]}  Rxd1+ {[%clk 0:02:49]} 18. Rxd1 {[%clk 0:01:56]}  Ne4 {[%clk 0:02:50]} 19. Rd8+ {[%clk 0:01:52]}  Rxd8 {[%clk 0:02:49]} 20. Bxd8 {[%clk 0:01:53]}  b5 {[%clk 0:02:49]} 21. Bb6 {[%clk 0:01:20]}  c4 {[%clk 0:02:26]} 22. Nd4 {[%clk 0:01:19]}  Bd7 {[%clk 0:02:27]} 23. f3 {[%clk 0:01:16]}  Nd6 {[%clk 0:02:27]} 24. Bc5 {[%clk 0:01:12]}  Nf5 {[%clk 0:02:26]} 25. Nc2 {[%clk 0:01:09]}  g5 {[%clk 0:02:19]} 26. Kf2 {[%clk 0:01:06]}  f6 {[%clk 0:02:19]} 27. e4 {[%clk 0:01:06]}  Ng7 {[%clk 0:02:19]} 28. Ke3 {[%clk 0:01:05]}  Kf7 {[%clk 0:02:19]} 29. Bb4 {[%clk 0:01:04]}  h5 {[%clk 0:02:18]} 30. h4 {[%clk 0:01:01]}  Ne6 {[%clk 0:02:16]} 31. f4 {[%clk 0:00:58]}  gxh4 {[%clk 0:02:08]} 32. gxh4 {[%clk 0:00:58]}  f5 {[%clk 0:02:09]} 33. a3 {[%clk 0:00:47]}  fxe4 {[%clk 0:01:46]} 34. Kxe4 {[%clk 0:00:48]}  Ng7 {[%clk 0:01:46]} 35. Ne3 {[%clk 0:00:47]}  Kg6 {[%clk 0:01:42]} 36. Kd5 {[%clk 0:00:43]}  Nf5 {[%clk 0:01:41]} 37. Nxf5 {[%clk 0:00:33]}  Kxf5 {[%clk 0:01:42]} 38. Kd4 {[%clk 0:00:26]} 1/2-1/2


[Site "https://www.chess.com"]

[Event "Titled Tuesday Blitz March 15 Late 2022"]
[White "Indjic, Aleksandar"]
[Black "Xu, Yi"]
[WhiteFideId "911925"]
[BlackFideId "8605564"]
[WhiteElo "2616"]
[BlackElo "2471"]
[Result "1/2-1/2"]
[Round "11"]
[TimeControl "180+1"]
[Date "2022.03.15"]
[WhiteClock "0:00:39"]
[BlackClock "0:00:21"]

1. d4 {[%clk 0:02:42]}  Nf6 {[%clk 0:02:59]} 2. c4 {[%clk 0:02:42]}  e6 {[%clk 0:02:59]} 3. Nc3 {[%clk 0:02:43]}  Bb4 {[%clk 0:02:59]} 4. Qc2 {[%clk 0:02:43]}  d5 {[%clk 0:02:59]} 5. cxd5 {[%clk 0:02:42]}  exd5 {[%clk 0:02:59]} 6. Bg5 {[%clk 0:02:41]}  h6 {[%clk 0:02:56]} 7. Bh4 {[%clk 0:02:41]}  g5 {[%clk 0:02:52]} 8. Bg3 {[%clk 0:02:39]}  Nc6 {[%clk 0:02:52]} 9. e3 {[%clk 0:02:40]}  Ne4 {[%clk 0:02:41]} 10. Bd3 {[%clk 0:02:35]}  Bf5 {[%clk 0:02:36]} 11. Ne2 {[%clk 0:02:28]}  h5 {[%clk 0:02:33]} 12. h4 {[%clk 0:02:23]}  Nxg3 {[%clk 0:02:25]} 13. Nxg3 {[%clk 0:02:23]}  Bxd3 {[%clk 0:02:25]} 14. Qxd3 {[%clk 0:02:24]}  gxh4 {[%clk 0:02:25]} 15. Nf5 {[%clk 0:02:24]}  Qg5 {[%clk 0:02:18]} 16. Nxh4 {[%clk 0:02:20]}  Bxc3+ {[%clk 0:02:05]} 17. bxc3 {[%clk 0:02:19]}  O-O-O {[%clk 0:02:05]} 18. Qf5+ {[%clk 0:02:18]}  Qxf5 {[%clk 0:02:04]} 19. Nxf5 {[%clk 0:02:19]}  Rdg8 {[%clk 0:02:02]} 20. g3 {[%clk 0:02:19]}  Kd7 {[%clk 0:02:02]} 21. Ke2 {[%clk 0:02:16]}  Ne7 {[%clk 0:02:01]} 22. Nh4 {[%clk 0:02:05]}  Ng6 {[%clk 0:01:56]} 23. a4 {[%clk 0:02:02]}  a5 {[%clk 0:01:55]} 24. Nf3 {[%clk 0:01:58]}  b6 {[%clk 0:01:53]} 25. c4 {[%clk 0:01:57]}  dxc4 {[%clk 0:01:43]} 26. Rac1 {[%clk 0:01:57]}  f6 {[%clk 0:01:41]} 27. Rxc4 {[%clk 0:01:56]}  Ne7 {[%clk 0:01:41]} 28. e4 {[%clk 0:01:56]}  Re8 {[%clk 0:01:37]} 29. Kd3 {[%clk 0:01:55]}  c6 {[%clk 0:01:36]} 30. Rb1 {[%clk 0:01:53]}  Rb8 {[%clk 0:01:34]} 31. Rcc1 {[%clk 0:01:52]}  Rhc8 {[%clk 0:01:29]} 32. Nd2 {[%clk 0:01:50]}  b5 {[%clk 0:01:22]} 33. Nb3 {[%clk 0:01:49]}  bxa4 {[%clk 0:01:19]} 34. Nc5+ {[%clk 0:01:49]}  Kd6 {[%clk 0:01:18]} 35. Kc4 {[%clk 0:01:43]}  a3 {[%clk 0:01:08]} 36. f4 {[%clk 0:01:42]}  Ng6 {[%clk 0:00:55]} 37. e5+ {[%clk 0:01:40]}  fxe5 {[%clk 0:00:55]} 38. dxe5+ {[%clk 0:01:19]}  Ke7 {[%clk 0:00:55]} 39. Nd3 {[%clk 0:01:16]}  Ke6 {[%clk 0:00:46]} 40. Ra1 {[%clk 0:01:16]}  h4 {[%clk 0:00:35]} 41. gxh4 {[%clk 0:01:14]}  Rf8 {[%clk 0:00:33]} 42. Rf1 {[%clk 0:01:10]}  Nxf4 {[%clk 0:00:26]} 43. Rxf4 {[%clk 0:00:41]}  Rb4+ {[%clk 0:00:25]} 44. Kc5 {[%clk 0:00:42]}  Rbxf4 {[%clk 0:00:22]} 45. Nxf4+ {[%clk 0:00:42]}  Rxf4 {[%clk 0:00:23]} 46. Rxa3 {[%clk 0:00:41]}  Rxh4 {[%clk 0:00:23]} 47. Rxa5 {[%clk 0:00:40]}  Re4 {[%clk 0:00:20]} 48. Kxc6 {[%clk 0:00:40]}  Rxe5 {[%clk 0:00:20]} 49. Rxe5+ {[%clk 0:00:39]}  Kxe5 {[%clk 0:00:21]} 1/2-1/2


[Site "https://www.chess.com"]